bitfinex/quotes_ETHUSD_20250920
["timestamp","ask_amount","ask_price","bid_price","bid_amount"]
[1758389434430,0.002,4489.1,4489.0,8.50713142]
[1758389435230,0.002,4489.1,4489.0,8.94847228]
[1758389437839,0.002,4489.1,4489.0,15.0658472]
[1758389438448,0.002,4489.1,4489.0,18.0658472]
[1758389438655,0.002,4489.6,4489.5,3.01941953]
[1758389438852,0.002,4489.6,4489.5,13.1987364]
[1758389439059,0.002,4489.6,4489.5,13.4315364]
[1758389456872,0.002,4489.6,4489.5,16.4315364]
[1758389459917,0.002,4490.4,4489.8,3.0]
[1758389460215,0.002,4490.4,4490.1,9.13649681]
[1758389460397,0.002,4490.4,4490.1,16.33104416]
[1758389460602,0.2293,4490.8,4490.1,16.33104416]
[1758389460603,0.002,4490.8,4490.6,2.22687391]
[1758389460776,0.002,4490.8,4490.6,15.89804586]
[1758389460975,0.002,4490.8,4490.6,15.89224883]
[1758389461771,0.002,4490.8,4490.7,3.01882432]
[1758389461977,0.002,4491.1,4491.0,3.01867557]
[1758389462178,0.002,4491.1,4491.0,6.77946765]
[1758389462416,0.002,4491.1,4491.0,6.77367557]
[1758389463073,0.002,4491.1,4491.0,9.77367557]
[1758389463278,0.002,4491.1,4491.0,16.12265049]
[1758389463582,0.002,4491.1,4491.0,20.01632693]
[1758389463818,0.002,4491.1,4491.0,20.24792693]
[1758389465788,0.002,4491.6,4491.5,3.01842769]
[1758389466023,0.002,4491.6,4491.5,12.88980261]
[1758389466224,0.256,4491.9,4491.6,3.792]
[1758389466225,0.01,4491.9,4491.6,3.792]
[1758389466559,0.01,4491.9,4491.8,0.792]
[1758389466908,0.01,4491.9,4491.8,3.47769567]
[1758389474268,0.01,4491.9,4491.8,7.22969567]
[1758389474583,0.01,4491.9,4491.8,7.22391351]
[1758389474784,0.01,4491.9,4491.8,8.58508038]
[1758389478180,0.01,4491.9,4491.8,4.83308038]
[1758389478386,0.01,4491.9,4491.4,2.22645895]
[1758389478387,0.2394,4491.9,4491.4,2.22645895]
[1758389478536,0.2294,4491.8,4491.5,2.22642764]
[1758389478736,0.2294,4491.7,4491.6,3.751]
[1758389479175,0.2294,4491.7,4491.6,5.97737812]
[1758389479989,0.2294,4491.7,4491.6,3.751]
[1758389480183,0.2294,4491.7,4491.6,5.97737812]
[1758389480989,0.2294,4491.7,4491.6,6.76937812]
[1758389483308,0.01,4491.9,4491.8,3.01827899]
[1758389483512,0.01,4491.9,4491.8,6.76927899]
[1758389483802,0.2394,4491.9,4491.8,6.76927899]
[1758389486117,0.2394,4491.9,4491.8,4.543]
[1758389487495,0.2394,4491.9,4491.8,6.76927899]
[1758389487898,0.2394,4491.9,4491.8,4.543]
[1758389488792,0.2394,4491.9,4491.8,6.76927899]
[1758389489184,0.2394,4491.9,4491.8,4.543]
[1758389489909,0.01,4491.9,4491.8,12.88665391]
[1758389492690,0.2394,4491.9,4491.8,12.88665391]
[1758389492897,0.2394,4491.9,4491.8,9.13565391]
[1758389493082,0.2394,4491.9,4491.8,12.88565391]
[1758389493616,0.01,4491.9,4491.8,12.88565391]
[1758389496024,0.01,4491.9,4491.8,12.88465391]
[1758389499924,0.01,4491.9,4491.8,11.70531404]
[1758389501820,0.01,4491.9,4491.8,11.95271404]
[1758389502588,0.01,4491.9,4491.8,11.70531404]
[1758389502812,0.01,4491.9,4491.8,11.70431404]
[1758389503318,0.01,4491.9,4491.8,13.12212012]
[1758389504917,0.012,4491.9,4491.8,13.12212012]
[1758389506729,0.012,4491.9,4491.8,13.36332012]
[1758389507405,0.012,4491.9,4491.8,13.12212012]
[1758389509705,0.012,4491.9,4491.8,13.36332012]
[1758389510101,0.012,4491.9,4491.8,13.12212012]
[1758389511527,0.012,4491.9,4491.8,13.12112012]
[1758389512440,0.012,4491.9,4491.8,13.36232012]
[1758389515131,0.012,4491.9,4491.8,13.12112012]
[1758389516604,0.012,4491.9,4491.8,13.36232012]
[1758389516934,0.012,4491.9,4491.8,13.12112012]
[1758389517500,0.012,4491.9,4491.8,7.95631404]
[1758389517708,0.2557,4491.9,4491.6,0.001]
[1758389518023,0.2557,4491.9,4491.6,5.9733625]
[1758389518219,0.2437,4491.8,4491.6,5.9733625]
[1758389518422,0.2437,4491.7,4491.6,5.9733625]
[1758389518729,0.2437,4491.7,4491.6,3.747]
[1758389519738,0.2437,4491.7,4491.6,5.97916276]
[1758389519899,0.2437,4491.7,4491.6,5.97337812]
[1758389523334,0.012,4491.9,4491.7,0.792]
[1758389523567,0.012,4491.9,4491.8,9.48081777]
[1758389523715,0.012,4491.9,4491.8,9.47503505]
[1758389524243,0.012,4491.9,4491.8,11.70131404]
[1758389528954,0.2472,4491.9,4491.8,11.70131404]
[1758389529660,0.012,4491.9,4491.8,11.70131404]
[1758389530136,0.012,4491.9,4491.8,7.95631404]
[1758389530336,0.012,4491.9,4491.8,11.70031404]
[1758389531049,0.2472,4491.9,4491.8,11.70031404]
[1758389532307,0.2472,4491.9,4491.8,9.47403505]
[1758389532526,0.2472,4491.9,4491.8,11.70031404]
[1758389533860,0.012,4491.9,4491.8,11.70031404]
[1758389535924,0.012,4491.9,4491.8,12.81089394]
[1758389538825,0.002,4492.2,4492.1,0.792]
[1758389539025,0.002,4492.2,4492.1,9.47881349]
[1758389539348,0.002,4492.2,4492.1,9.70043505]
[1758389539657,0.002,4492.2,4492.1,11.20404243]
[1758389539852,0.002,4492.2,4492.1,13.43017274]
[1758389547634,0.002,4492.2,4492.1,13.51938965]
[1758389548484,0.002,4492.2,4492.1,16.51938965]
[1758389557922,0.002,4492.2,4492.1,12.77638965]
[1758389558124,0.002,4492.2,4492.1,16.51638965]
[1758389560237,0.002,4492.2,4492.1,16.28898965]
[1758389561842,0.002,4492.2,4492.1,17.45877709]
[1758389562628,0.002,4492.2,4492.1,17.68617709]
[1758389564745,0.002,4492.2,4492.1,17.45877709]
[1758389565345,0.002,4492.2,4492.1,7.6109546]
[1758389565570,0.2285,4492.2,4492.1,5.31534722]
[1758389565849,0.2285,4492.2,4492.1,9.84534722]
[1758389567026,0.2285,4492.2,4492.1,6.10734722]
[1758389567233,0.2285,4492.2,4492.1,9.84534722]
[1758389578479,0.2285,4492.2,4492.1,9.84434722]
[1758389578641,0.002,4492.2,4492.1,9.84434722]
[1758389579240,0.2285,4492.2,4492.1,9.84434722]
[1758389579755,0.002,4492.2,4492.1,11.66228218]
[1758389580579,0.002,4492.2,4492.1,7.92528218]
[1758389580764,0.2285,4492.2,4492.1,9.84434722]
[1758389580970,0.002,4492.2,4492.1,9.84434722]
[1758389581281,0.2285,4492.2,4492.1,9.84434722]
[1758389585076,0.2285,4492.2,4492.1,9.75513031]
[1758389585957,0.2285,4492.2,4492.1,3.01813031]
[1758389586285,0.2285,4492.2,4492.0,0.2295]
[1758389586483,0.2285,4492.2,4492.1,3.736]
[1758389586684,0.5059046,4492.2,4492.1,3.736]
[1758389587187,0.5059046,4492.2,4492.0,3.737]
[1758389587484,0.2422,4492.1,4492.0,3.737]
[1758389587803,0.27002662,4492.1,4492.0,0.001]
[1758389588099,2.49615693,4492.1,4492.0,0.001]
[1758389588258,0.77038232,4492.1,4492.0,0.001]
[1758389590258,0.27002662,4492.1,4492.0,0.001]
[1758389590478,0.2422,4492.1,4492.0,0.001]
[1758389591056,2.46833031,4492.1,4492.0,0.001]
[1758389591358,0.2422,4492.1,4492.0,0.001]
[1758389591581,0.27002662,4492.1,4492.0,0.001]
[1758389591991,0.74263711,4492.1,4492.0,0.001]
[1758389592183,2.96876742,4492.1,4492.0,0.001]
[1758389594177,0.74263711,4492.1,4492.0,0.001]
[1758389594884,0.27002662,4492.1,4492.0,0.001]
[1758389595102,0.2422,4492.1,4492.0,0.001]
[1758389603507,2.46833031,4492.1,4492.0,0.001]
[1758389606428,0.2422,4492.1,4492.0,0.001]
[1758389608137,2.46833031,4492.1,4492.0,0.001]
[1758389608304,2.94094428,4492.1,4492.0,0.001]
[1758389608636,0.71481397,4492.1,4492.0,0.001]
[1758389609119,2.94094428,4492.1,4492.0,0.001]
[1758389611251,2.94294428,4492.1,4492.0,0.001]
[1758389615117,2.9707709,4492.1,4492.0,0.001]
[1758389616213,3.17801499,4492.1,4492.0,0.001]
[1758389619524,2.93581499,4492.1,4492.0,0.001]
[1758389619728,3.16451499,4492.1,4492.0,0.001]
[1758389623648,2.93581499,4492.1,4492.0,0.001]
[1758389624766,3.18501499,4492.1,4492.0,0.001]
[1758389629695,2.93581499,4492.1,4492.0,0.001]
[1758389631082,3.18501499,4492.1,4492.0,0.001]
[1758389632558,2.93581499,4492.1,4492.0,0.001]
[1758389633988,2.7285709,4492.1,4492.0,0.001]
[1758389634488,2.93588469,4492.1,4492.0,0.001]
[1758389634796,2.7285709,4492.1,4492.0,0.001]
[1758389639306,2.9359295,4492.1,4492.0,0.001]
[1758389640607,2.7285709,4492.1,4492.0,0.001]
[1758389640807,3.185142,4492.1,4492.0,0.001]
[1758389654340,3.184842,4492.1,4492.0,0.001]
[1758389654634,3.50239002,4492.1,4492.0,0.001]
[1758389654786,3.59164316,4492.1,4492.0,0.001]
[1758389657952,18.68813307,4492.1,4492.0,0.001]
[1758389658246,18.66030645,4492.1,4492.0,0.001]
[1758389658543,18.95545193,4492.1,4492.0,0.001]
[1758389659908,19.06618714,4492.1,4492.0,0.001]
[1758389661121,2.22637812,4491.6,4491.5,1e-08]
[1758389661320,16.37261687,4491.6,4491.5,1e-08]
[1758389661522,16.34478715,4491.6,4491.5,1e-08]
[1758389661726,16.88883263,4491.6,4491.5,1e-08]
[1758389662531,16.97811267,4491.6,4491.5,1e-08]
[1758389662741,17.45072664,4491.6,4491.5,1e-08]
[1758389664216,12.21609125,4491.6,4491.5,1e-08]
[1758389664667,19.37309125,4491.6,4491.5,1e-08]
[1758389671423,19.12419125,4491.6,4491.5,1e-08]
[1758389671957,19.37309125,4491.6,4491.5,1e-08]
[1758389672891,15.39619125,4491.6,4491.5,1e-08]
[1758389673231,18.80564323,4491.6,4491.5,0.22650001]
[1758389675451,18.59827213,4491.6,4491.5,0.22650001]
[1758389675658,18.80466107,4491.6,4491.5,0.22650001]
[1758389676757,15.3320471,4491.6,4491.5,0.22650001]
[1758389677065,15.12565816,4491.6,4491.5,0.22650001]
[1758389678162,10.97328004,4491.6,4491.5,0.22650001]
[1758389678463,0.08928004,4491.6,4491.5,0.22650001]
[1758389678663,3.727,4491.7,4491.5,0.22650001]
[1758389678841,3.7548291,4491.7,4491.6,4.93948991]
[1758389679030,3.7548291,4491.7,4491.6,5.16598991]
[1758389680766,0.0278291,4491.7,4491.6,5.16598991]
[1758389683086,3.726,4491.8,4491.6,5.16598991]
[1758389683601,3.726,4491.8,4491.7,0.2265]
[1758389685057,3.726,4491.9,4491.7,0.2265]
[1758389685471,3.726,4491.9,4491.8,0.792]
[1758389685797,3.728,4492.1,4491.8,1.0321]
[1758389685977,3.728,4492.1,4491.6,0.792]
[1758389686178,3.728,4492.1,4491.8,0.792]
[1758389686399,3.75582662,4492.1,4491.5,0.79200001]
[1758389686595,3.75582662,4492.1,4491.8,0.2401]
[1758389686892,5.98197016,4492.1,4491.6,0.2401]
[1758389687096,2.22626501,4491.9,4491.5,1e-08]
[1758389687295,0.02782848,4491.8,4491.5,1e-08]
[1758389687858,0.02782848,4491.8,4491.5,0.24010001]
[1758389688996,0.02782848,4491.8,4491.5,1e-08]
[1758389689200,0.02782848,4491.8,4491.6,0.2401]
[1758389689496,0.02782848,4491.8,4491.5,1e-08]
[1758389689700,0.02782848,4491.8,4491.7,0.2401]
[1758389693806,3.725,4491.9,4491.7,0.2401]
[1758389695622,0.02782848,4491.8,4491.7,0.2401]
[1758389698920,0.02782848,4491.8,4491.5,1e-08]
[1758389699123,0.02982848,4491.8,4491.6,0.2401]
[1758389702210,0.02982848,4491.8,4491.5,1e-08]
[1758389702404,0.26302848,4491.8,4491.5,1e-08]
[1758389702804,2.48931751,4491.8,4491.5,1e-08]
[1758389703226,2.25611751,4491.8,4491.5,1e-08]
[1758389703592,0.02982848,4491.8,4491.5,1e-08]
[1758389703929,2.25611705,4491.8,4491.5,1e-08]
[1758389704117,0.02982848,4491.8,4491.5,1e-08]
[1758389704627,2.25611346,4491.8,4491.5,1e-08]
[1758389705128,0.02982848,4491.8,4491.5,1e-08]
[1758389705875,2.25615,4491.8,4491.5,1e-08]
[1758389709847,2.22633152,4491.7,4491.5,1e-08]
[1758389710543,2.25611922,4491.8,4491.5,1e-08]
[1758389710746,2.22633293,4491.7,4491.5,1e-08]
[1758389711543,2.49891646,4491.8,4491.5,1e-08]
[1758389712250,2.22633717,4491.7,4491.5,1e-08]
[1758389712613,2.49891416,4491.8,4491.5,1e-08]
[1758389712815,2.22635041,4491.7,4491.5,1e-08]
[1758389713451,2.49891813,4491.8,4491.5,1e-08]
[1758389714274,0.02982848,4491.8,4491.5,1e-08]
[1758389715456,2.25611557,4491.8,4491.5,1e-08]
[1758389716330,0.02982848,4491.8,4491.5,1e-08]
[1758389717750,2.22637812,4491.6,4491.5,1e-08]
[1758389718076,5.97620784,4491.6,4491.5,1e-08]
[1758389718378,6.18987812,4491.6,4491.5,1e-08]
[1758389721601,3.9635,4491.6,4491.5,1e-08]
[1758389721750,6.21770784,4491.6,4491.5,1e-08]
[1758389722079,7.03447201,4491.6,4491.5,1e-08]
[1758389723692,4.80809389,4491.6,4491.5,1e-08]
[1758389724241,4.56659389,4491.6,4491.5,1e-08]
[1758389724442,7.03447201,4491.6,4491.5,1e-08]
[1758389724982,4.80809389,4491.6,4491.5,1e-08]
[1758389726779,7.03447201,4491.6,4491.5,1e-08]
[1758389726955,4.80809389,4491.6,4491.5,1e-08]
[1758389727355,7.03447201,4491.6,4491.5,1e-08]
[1758389730271,4.80809389,4491.6,4491.5,1e-08]
[1758389732189,7.03447201,4491.6,4491.5,1e-08]
[1758389732394,4.80809389,4491.6,4491.5,1e-08]
[1758389735364,7.03447201,4491.6,4491.5,1e-08]
[1758389735877,4.80609389,4491.6,4491.5,1e-08]
[1758389736501,6.79097201,4491.6,4491.5,1e-08]
[1758389737199,7.03247201,4491.6,4491.5,1e-08]
[1758389739605,4.56459389,4491.6,4491.5,0.24400001]
[1758389739807,3.72,4491.6,4491.5,0.24400001]
[1758389739981,3.72,4491.6,4491.5,1e-08]
[1758389741102,6.18787812,4491.6,4491.5,1e-08]
[1758389746508,3.9615,4491.6,4491.5,1e-08]
[1758389746835,3.98932972,4491.6,4491.5,1e-08]
[1758389747216,3.74782972,4491.6,4491.5,1e-08]
[1758389747730,3.72,4491.6,4491.5,1e-08]
[1758389747889,3.74682972,4491.6,4491.5,1e-08]
[1758389748102,3.74682972,4491.6,4491.5,0.22940001]
[1758389748939,3.74682972,4491.6,4491.5,1e-08]
[1758389749259,0.02782972,4491.6,4491.5,1e-08]
[1758389749458,3.74682972,4491.6,4491.5,1e-08]
[1758389750712,0.02782972,4491.6,4491.5,0.22940001]
[1758389750912,3.719,4491.7,4491.5,0.22940001]
[1758389751868,3.719,4491.7,4491.6,0.2294]
[1758389752142,3.719,4491.7,4491.5,1e-08]
[1758389752447,0.02782972,4491.6,4491.5,0.22940001]
[1758389753149,0.02782972,4491.6,4491.5,1e-08]
[1758389754051,0.02782972,4491.6,4491.5,0.22940001]
[1758389754223,3.721,4491.7,4491.5,0.22940001]
[1758389754423,3.721,4491.7,4491.6,0.2294]
[1758389758075,3.721,4491.7,4491.5,1e-08]
[1758389758277,3.721,4491.7,4491.5,0.22940001]
[1758389758741,0.002,4491.7,4491.5,0.22940001]
[1758389759879,0.002,4491.7,4491.6,0.2294]
[1758389760445,0.002,4491.7,4491.6,1.0214]
[1758389760640,0.002,4491.7,4491.6,3.24777812]
[1758389760839,0.002,4491.7,4491.6,3.84457242]
[1758389761581,0.002,4491.7,4491.6,3.85035706]
[1758389761907,0.002,4491.7,4491.6,3.84457242]
[1758389764091,0.002,4491.7,4491.6,3.85845706]
[1758389765287,0.002,4491.7,4491.6,3.85267242]
[1758389768506,0.002,4491.7,4491.6,3.85845706]
[1758389775192,0.002,4491.7,4491.6,7.56945706]
[1758389775519,0.002,4491.7,4491.6,7.56367242]
[1758389778589,0.002,4491.7,4491.6,3.61517242]
[1758389778820,0.002,4491.7,4491.6,7.33117242]
[1758389779023,0.002,4491.7,4491.6,3.61517242]
[1758389779186,0.2338,4491.7,4491.6,10.88213638]
[1758389779392,0.2338,4491.7,4491.6,11.67413638]
[1758389781235,0.2338,4491.7,4491.6,9.44775826]
[1758389781651,0.2338,4491.7,4491.6,11.67413638]
[1758389782026,0.002,4491.7,4491.6,11.67413638]
[1758389782728,0.2338,4491.7,4491.6,11.67413638]
[1758389783049,0.002,4491.7,4491.6,11.67413638]
[1758389783459,0.2338,4491.7,4491.6,11.67413638]
[1758389784211,0.002,4491.7,4491.6,11.67413638]
[1758389786164,0.2338,4491.7,4491.6,11.67413638]
[1758389786351,0.2338,4491.7,4491.6,5.73275826]
[1758389786554,0.2338,4491.7,4491.6,9.44775826]
[1758389786968,0.2338,4491.7,4491.6,11.67413638]
[1758389789538,0.002,4491.7,4491.6,11.67413638]
[1758389794694,0.002,4491.7,4491.6,9.44675826]
[1758389794847,0.2338,4491.7,4491.6,9.44675826]
[1758389795183,0.2338,4491.7,4491.6,11.67313638]
[1758389796081,0.002,4491.7,4491.6,11.67313638]
[1758389798552,0.002,4491.7,4491.6,11.90563638]
[1758389799577,0.002,4491.7,4491.6,11.67313638]
[1758389799880,0.002,4491.7,4491.6,11.90563638]
[1758389800076,0.002,4491.7,4491.6,11.67313638]
[1758389800472,0.2338,4491.7,4491.6,11.67313638]
[1758389800669,0.002,4491.7,4491.6,11.67313638]
[1758389801263,0.002,4491.7,4491.6,3.01837812]
[1758389801462,0.002,4491.7,4491.6,11.67313638]
[1758389802056,0.002,4491.7,4491.6,11.90563638]
[1758389802966,0.002,4491.7,4491.6,11.67313638]
[1758389803166,0.002,4491.7,4491.6,13.55629518]
[1758389804092,0.002,4491.7,4491.6,13.32379518]
[1758389804286,0.002,4491.7,4491.6,13.55669518]
[1758389804795,0.002,4491.7,4491.6,11.67213638]
[1758389806480,0.002,4491.7,4491.6,11.90503638]
[1758389806675,0.002,4491.7,4491.6,11.67213638]
[1758389807010,0.002,4491.7,4491.6,11.90503638]
[1758389808004,0.002,4491.7,4491.6,13.07484642]
[1758389812218,0.002,4491.7,4491.6,12.84194642]
[1758389814122,0.002,4491.7,4491.6,13.07484642]
[1758389814416,0.002,4491.7,4491.6,12.84194642]
[1758389815118,0.002,4491.7,4491.6,14.84242622]
[1758389815416,0.002,4491.7,4491.6,15.06922622]
[1758389817011,0.002,4491.7,4491.6,14.83632622]
[1758389817728,0.002,4491.7,4491.6,15.06922622]
[1758389820934,0.002,4491.7,4491.6,15.06822622]
[1758389823150,0.002,4491.7,4491.6,18.06502622]
[1758389824538,0.002,4491.8,4491.7,6.01832856]
[1758389824728,0.002,4492.1,4492.0,12.12874817]
[1758389824928,0.002,4492.1,4492.0,15.84074817]
[1758389825447,0.002,4492.1,4492.0,16.1596615]
[1758389830042,0.002,4492.1,4492.0,15.9299615]
[1758389830556,0.002,4492.1,4492.0,16.1596615]
[1758389830732,0.002,4492.1,4492.0,18.21818001]
[1758389833318,0.002,4492.1,4492.0,17.98848001]
[1758389834540,0.002,4492.1,4492.0,17.98748001]
[1758389834742,0.002,4492.1,4492.0,18.21518001]
[1758389834942,0.002,4492.1,4492.0,14.50418001]
[1758389835152,0.002,4492.1,4492.0,18.21518001]
[1758389837733,0.002,4492.1,4492.0,17.98748001]
[1758389840047,0.002,4492.1,4492.0,18.21518001]
[1758389840858,0.002,4492.1,4492.0,17.98748001]
[1758389841263,0.247,4492.1,4492.0,17.98748001]
[1758389841760,0.002,4492.1,4492.0,17.98748001]
[1758389843960,0.002,4492.1,4492.0,18.21518001]
[1758389844662,0.002,4492.5,4492.3,0.792]
[1758389844859,0.002,4492.5,4492.4,18.22772523]
[1758389845034,0.002,4492.5,4492.4,18.22194995]
[1758389845364,0.002,4492.5,4492.4,18.53885432]
[1758389846475,0.01,4492.9,4492.5,6.0179321]
[1758389846975,0.01,4492.9,4492.5,6.2456321]
[1758389847153,0.01,4492.9,4492.5,8.32211074]
[1758389847743,0.01,4492.9,4492.5,8.41131293]
[1758389848075,0.01,4492.9,4492.5,8.18361293]
[1758389848267,0.247,4492.6,4492.5,8.18361293]
[1758389848469,0.002,4492.6,4492.5,8.18361293]
[1758389852681,0.002,4492.8,4492.6,6.01788256]
[1758389852858,0.002,4493.0,4492.9,3.792]
[1758389853061,0.002,4493.0,4492.9,15.84307077]
[1758389853247,0.002,4493.0,4492.9,15.83730223]
[1758389853449,0.002,4493.0,4492.9,16.50627388]
[1758389858706,0.002,4493.0,4492.9,16.73397388]
[1758389858892,0.002,4493.0,4492.9,18.58443745]
[1758389859396,0.002,4493.0,4492.9,18.35673745]
[1758389862113,0.247,4493.0,4492.9,14.64773745]
[1758389862318,0.247,4493.0,4492.9,18.35573745]
[1758389863392,0.002,4493.0,4492.9,18.35573745]
[1758389869816,0.002,4493.0,4492.9,17.17939057]
[1758389871125,0.2484,4493.0,4492.9,17.17939057]
[1758389873027,0.2484,4493.0,4492.9,12.24516915]
[1758389873630,0.002,4493.0,4492.9,12.24516915]
[1758389875608,0.002,4493.0,4492.4,0.001]
[1758389875609,2.2259321,4492.5,4492.4,0.001]
[1758389875822,2.2259321,4492.5,4491.3,0.001]
[1758389875823,2.22637812,4491.6,4491.3,0.001]
[1758389876362,2.75001541,4491.6,4491.3,0.001]
[1758389876651,3.04584157,4491.6,4491.3,0.001]
[1758389877255,3.36926543,4491.6,4491.3,0.001]
[1758389877838,3.39709515,4491.6,4491.3,0.001]
[1758389878036,1.17071703,4491.6,4491.3,0.001]
[1758389878353,0.78117974,4491.6,4491.3,0.001]
[1758389878550,0.25118246,4491.6,4491.3,0.001]
[1758389880220,0.22335274,4491.6,4491.3,0.001]
[1758389885973,0.08925274,4491.6,4491.3,0.001]
[1758389886174,0.08925274,4491.6,4491.4,0.792]
[1758389886374,0.161926,4492.2,4491.4,0.792]
[1758389886539,0.66932389,4492.0,4491.9,2.22622943]
[1758389886965,0.02782539,4492.3,4491.9,2.22622943]
[1758389887311,0.40070629,4492.3,4491.9,2.22622943]
[1758389889573,0.16192539,4492.3,4491.9,2.22622943]
[1758389890377,0.02782539,4492.3,4491.7,3.01828249]
[1758389890681,0.1341,4492.3,4491.7,3.01828249]
[1758389890867,0.027826,4492.2,4491.7,3.01828249]
[1758389891079,0.161926,4492.2,4491.7,3.01828249]
[1758389891284,0.161926,4492.2,4491.8,2.22627035]
[1758389892366,0.161926,4492.2,4491.9,2.22622745]
[1758389892891,0.027826,4492.2,4491.9,2.22622745]
[1758389893193,0.02982539,4492.3,4491.9,2.22622745]
[1758389893393,0.33573545,4492.3,4491.9,2.22622745]
[1758389893698,0.46983545,4492.3,4491.9,2.22622745]
[1758389894061,0.46983545,4492.3,4491.8,2.22627337]
[1758389897891,0.46983545,4492.3,4491.8,2.47547337]
[1758389898072,0.33573545,4492.3,4491.8,2.47547337]
[1758389898479,0.33573545,4492.3,4491.8,0.2492]
[1758389898663,0.02982539,4492.3,4491.8,0.2492]
[1758389898865,0.02982539,4492.3,4491.7,0.792]
[1758389899385,0.02982539,4492.3,4491.8,2.22627147]
[1758389901603,0.02982539,4492.3,4491.8,2.47547147]
[1758389902101,0.02982539,4492.3,4491.8,0.2492]
[1758389902397,0.02982539,4492.3,4491.8,2.47547424]
[1758389903186,0.02982539,4492.3,4491.9,2.22622087]
[1758389903391,0.24098201,4492.3,4491.9,2.22622087]
[1758389903604,0.027826,4492.2,4491.9,2.47542087]
[1758389904700,0.027826,4492.2,4491.8,2.2262722]
[1758389905001,0.027826,4492.2,4491.8,2.47547899]
[1758389905965,0.027826,4492.2,4492.0,2.22617632]
[1758389906165,0.027826,4492.2,4491.9,2.47539256]
[1758389906401,0.002,4492.3,4491.9,2.47539256]
[1758389906776,0.02982539,4492.3,4491.9,2.47539256]
[1758389907123,0.25539742,4492.3,4492.0,0.2492]
[1758389907276,0.02982539,4492.3,4492.0,0.2492]
[1758389907477,0.002,4492.3,4492.0,0.2492]
[1758389907707,0.002,4492.3,4492.1,2.22611819]
[1758389908308,0.002,4492.3,4492.1,2.47531819]
[1758389908506,0.002,4492.3,4492.2,2.22608076]
[1758389908707,0.002,4492.3,4492.2,2.47528076]
[1758389909575,0.002,4492.3,4492.2,3.26728076]
[1758389909802,0.002,4492.3,4492.2,4.19400312]
[1758389910381,0.002,4492.3,4492.2,4.18822591]
[1758389911290,0.002,4492.3,4492.2,4.19400312]
[1758389913513,0.002,4492.3,4492.2,4.18822591]
[1758389913816,0.002,4492.3,4492.2,4.19400312]
[1758389914182,0.002,4492.3,4492.2,4.18822591]
[1758389915780,0.002,4492.3,4492.2,7.90422591]
[1758389919217,0.002,4492.3,4492.2,10.90422591]
[1758389919388,0.002,4492.3,4492.2,9.98328076]
[1758389924632,0.002,4492.3,4492.2,9.73408076]
[1758389927238,0.002,4492.3,4492.2,8.93808076]
[1758389927434,0.1361,4492.3,4492.2,8.93808076]
[1758389927593,0.002,4492.3,4492.2,9.73008076]
[1758389929445,0.002,4492.3,4492.2,10.68006786]
[1758389937629,0.002,4492.3,4492.2,10.43996786]
[1758389937833,0.002,4492.3,4492.2,10.68006786]
[1758389949762,0.002,4492.3,4492.2,12.60506786]
[1758389954648,0.002,4492.3,4492.2,8.65296786]
[1758389954867,0.002,4492.3,4492.2,12.36296786]
[1758389955105,0.1361,4492.3,4492.2,8.65296786]
[1758389955299,0.002,4492.3,4492.2,8.65296786]
[1758389955502,0.002,4492.3,4492.2,12.36296786]
[1758389959310,0.002,4492.3,4492.2,7.94308076]
[1758389959595,0.1361,4492.3,4492.2,11.65308076]
[1758389961864,0.002,4492.3,4492.2,11.65308076]
[1758389963417,0.1361,4492.3,4492.2,11.65308076]
[1758389967609,0.002,4492.3,4492.2,11.65308076]
[1758389968896,0.002,4492.3,4492.2,9.72808076]
[1758389982320,0.002,4492.3,4492.2,6.01808076]
[1758389982521,0.002,4492.3,4492.2,9.72708076]
[1758389985628,0.002,4492.3,4492.2,0.792]
[1758389985800,0.1361,4492.3,4491.9,2.22618206]
[1758389985985,0.1341,4492.2,4492.0,4.501]
[1758389986184,0.1341,4492.1,4492.0,4.501]
[1758389986611,0.1341,4492.1,4492.0,6.72717987]
[1758389986805,0.002,4492.3,4492.0,6.72717987]
[1758389986982,0.1341,4492.2,4492.0,6.72717987]
[1758389987197,0.1341,4492.2,4492.0,3.01817987]
[1758389987395,0.1341,4492.2,4492.1,3.709]
[1758389987617,0.1341,4492.2,4492.1,5.93513031]
[1758389988118,0.1341,4492.2,4492.1,3.709]
[1758389989007,0.002,4492.3,4492.1,3.709]
[1758389989216,0.1361,4492.3,4492.1,3.709]
[1758389990510,0.1361,4492.3,4491.8,0.793]
[1758389990827,0.1361,4492.3,4492.0,0.792]
[1758389991031,0.1361,4492.3,4492.1,3.709]
[1758389992004,0.1361,4492.3,4492.0,2.22614286]
[1758389992320,0.1361,4492.3,4492.1,3.709]
[1758389992529,0.002,4492.3,4492.1,3.709]
[1758389993521,0.002,4492.3,4492.0,2.22614286]
[1758389994027,0.002,4492.3,4492.1,3.709]
[1758389995248,0.002,4492.3,4492.1,5.93511609]
[1758389996641,0.002,4492.3,4492.2,3.709]
[1758390003076,0.1361,4492.3,4492.2,3.709]
[1758390003247,0.37230579,4492.3,4492.2,3.709]
[1758390005233,0.40013118,4492.3,4492.2,3.709]
[1758390005435,0.1361,4492.3,4492.2,3.709]
[1758390006041,0.002,4492.3,4492.2,3.709]
[1758390008298,0.002,4492.3,4492.2,3.9454]
[1758390009063,0.002,4492.3,4492.2,0.2364]
[1758390016301,0.002,4492.3,4492.2,2.46248076]
[1758390016701,0.002,4492.3,4492.2,0.2364]
[1758390021888,0.002,4492.3,4492.0,0.24]
[1758390022091,0.002,4492.3,4492.1,3.949]
[1758390026946,0.002,4492.3,4492.1,3.948]
[1758390033915,0.002,4492.3,4492.2,0.24]